Cogmind - Beta 9.4 @@@ ROGUE MODE // 2020.03.22 @ 11:42:05 Player: JerichoBot Result: Destroyed by D-53 Grenadier with Mini Grenade Launcher Performance ------------- Evolutions (1) 500 Regions Visited (4) 800 Robots Destroyed (55) 275 Value Destroyed (992) 992 Prototype IDs (1) 20 Alien Tech Used (0) 0 Bonus (-16) -16 TOTAL SCORE: 2571 Bonus ------- High Alert Combat Kills 24 Follower Combat Kills 127 Friendly Fire -167 Cogmind --------- Core Integrity 0/400 Matter 213/300 Energy 0/100 System Corruption 0% Temperature Cool (62) Movement Core (800) Ox15 Location -9/Mines Parts ------- > --- POWER (1) -------- (None) > --- PROPULSION (2) --- (None) > --- UTILITY (4) ------ Large Storage Unit High-capacity Storage Unit Advanced Signal Interpreter Targeting Computer > --- WEAPON (2) ------- (None) > --- INVENTORY (18) --- Light Ion Engine Light Nuclear Core Aluminum Leg Aluminum Leg Heat Sink Medium Storage Unit Sensor Array Advanced Signal Interpreter Particle Charger Pulse Rifle Mining Laser Peak State ------------ > --- POWER ------------ Improved Ion Engine > --- PROPULSION ------- Wheel Wheel > --- UTILITY ---------- Large Storage Unit High-capacity Storage Unit Advanced Signal Interpreter Targeting Computer > --- WEAPON ----------- Advanced Beam Cannon Heavy Assault Rifle > --- INVENTORY -------- Light Ion Engine Light Nuclear Core Aluminum Leg Aluminum Leg Wheel Heat Sink Medium Storage Unit Sensor Array Advanced Signal Interpreter Particle Charger Pulse Rifle Pulse Rifle Pulse Rifle Pulse Rifle Grenade Launcher Grenade Launcher Mining Laser [Rating: 18] Favorites ----------- Power Improved Ion Engine Engine Improved Ion Engine Power Core Light Nuclear Core Propulsion Wheel Leg Aluminum Leg Wheel Wheel Utility Large Storage Unit Storage Large Storage Unit Processor Signal Interpreter Weapon Assault Rifle Energy Gun EM Pulse Gun Energy Cannon Advanced Beam Cannon Ballistic Gun Assault Rifle Launcher Grenade Launcher Special Weapon Mining Laser Build | -11 -10 -10 -9 -9 ------- Run | Scr Mat Min Mat Min Slots Evolved 2 | . . . 2 . Power . | . . . . . Propulsion . | . . . . . Utility 2 | . . . 2 . Weapon . | . . . . . Parts Attached 53 | 7 11 4 24 7 Power 5 | 1 2 . 2 . Engine 4 | 1 1 . 2 . Core 1 | . 1 . . . Reactor . | . . . . . Propulsion 10 | 3 . 2 4 1 Treads . | . . . . . Leg 1 | 1 . . . . Wheel 9 | 2 . 2 4 1 Hover . | . . . . . Flight . | . . . . . Utility 8 | 1 2 . 5 . Device . | . . . . . Storage 4 | 1 1 . 2 . Processor 4 | . 1 . 3 . Hackware . | . . . . . Protection . | . . . . . Artifact . | . . . . . Weapon 30 | 2 7 2 13 6 Energy Gun 4 | . . 1 . 3 Energy Cannon 4 | . . . 4 . Ballistic Gun 13 | 2 4 1 5 1 Ballistic Cannon . | . . . . . Launcher 7 | . 2 . 3 2 Special Weapon 2 | . 1 . 1 . Impact Weapon . | . . . . . Slashing Weapon . | . . . . . Piercing Weapon . | . . . . . Special Melee Weapon . | . . . . . Unidentified Prototypes 1 | . . . 1 . Parts Lost 19 | . 3 1 4 11 Power 2 | . 1 . . 1 Propulsion 5 | . . . 2 3 Utility . | . . . . . Weapon 12 | . 2 1 2 7 Highest Loss Streak 11 | . 3 1 1 11 Average Slot Usage (%) 98 | . 97 100 99 97 Engine 8 | . 13 . 9 10 Core 3 | . . 14 1 . Wheel 24 | . 28 28 21 21 Storage 18 | . 14 14 22 22 Processor 17 | . 12 14 22 22 Energy Cannon 4 | . . . 8 9 Ballistic Gun 18 | . 27 22 12 8 Special Weapon 1 | . . 4 . . Naked Turns . | . . . . . Heaviest Build 62 | 13 26 25 62 62 Greatest Support 26 | 26 26 26 20 20 Greatest Overweight (x) 4 | 2 . 1 4 3 Average Overweight (x) . | . . . 2 3 Largest Inventory Capacity 18 | 6 10 10 18 18 Average Capacity 12 | 5 8 10 16 18 Most Carried 17 | 6 9 10 17 17 Average Carried 10 | 2 6 9 12 16 Final Capacity 18 | 6 10 10 18 18 Final Carried 17 | 4 7 10 17 11 Class Distribution -------------------- 86% | Mutant 13% | Scavenger-Mutant Dominant Class ---------------- Mutant | -10/Materials Mutant | -10/Mines Mutant | -9/Materials Mutant | -9/Mines Resources | -11 -10 -10 -9 -9 ----------- Run | Scr Mat Min Mat Min Matter Collected 1050 | 162 315 68 491 14 Remotely . | . . . . . Salvage Created 1373 | . 434 89 790 60 Parts 99 | . 24 7 68 . Haulers Intercepted 4 | . 2 . 2 . Recyclers Shooed 4 | . 1 . 3 . Parts Field Recycled . | . . . . . Retrieved Matter . | . . . . . Parts Self-Destructed . | . . . . . Prevented . | . . . . . Kills | -11 -10 -10 -9 -9 ------- Run | Scr Mat Min Mat Min Combat Hostiles Destroyed 40 | . 12 3 19 6 Guns 17 | . 6 3 7 1 Cannons 8 | . . . 6 2 AOE 15 | . 6 . 6 3 Classes Destroyed 12 | . 5 1 4 2 Worker 3 | . . 2 1 . Builder 2 | . . . 2 . Hauler 4 | . 2 . 2 . Recycler 1 | . 1 . . . Mechanic 1 | . 1 . . . Operator 1 | . . . 1 . Watcher 2 | . . . 2 . Swarmer 16 | . 6 3 7 . Grunt 12 | . 6 . 6 . Sentry 6 | . . . 6 . Assembled 6 | . . . . 6 Guerrilla 1 | . . . . 1 Best Kill Streak 8 | . 8 3 5 6 Combat Bots Only 6 | . 5 3 4 6 Max Kills in Single Turn 4 | . 3 2 4 2 Gunslinging 1 | . . 1 . . Exploded 3 | . 3 . 3 2 Melee . | . . . . . Uniques/NPCs Destroyed . | . . . . . Combat | -11 -10 -10 -9 -9 -------- Run | Scr Mat Min Mat Min Damage Taken 2332 | . 528 93 750 961 Core 515 | . 96 16 142 261 Absorbed by Shields . | . . . . . Core Remaining (%) 77 | 100 . 55 . . Volleys Fired 150 | . 37 11 86 16 Largest 2 | . 2 2 2 2 Hottest 126 | . 40 100 100 126 Shots Fired 269 | . 70 20 160 19 Gun 185 | . 66 19 93 7 Cannon 62 | . . . 58 4 Launcher 17 | . 4 . 5 8 Special 5 | . . 1 4 . Kinetic 174 | . 66 13 93 2 Thermal 72 | . . 1 62 9 Explosive 17 | . 4 . 5 8 Electromagnetic 6 | . . 6 . . Robot Hit Streak 10 | . 8 5 7 10 Robot Miss Streak 5 | . 5 2 3 2 Penetration Max . | . . . . . Secondary Targets 3 | . 2 1 . . Max Gunslinging Chain 1 | . 1 1 . . Shots Hit Robots 157 | . 44 11 91 11 Core Hits 92 | . 29 5 42 16 Critical Hits 14 | . 2 . 10 2 Critical Kills 5 | . 1 . 2 2 Critical Parts Destroyed 8 | . 1 . 7 . Melee Attacks . | . . . . . Impact . | . . . . . Slashing . | . . . . . Piercing . | . . . . . Sneak Attacks . | . . . . . Combat Hostiles . | . . . . . Follow-up Attacks . | . . . . . Damage Inflicted 3575 | . 1143 140 1696 596 Guns 1406 | . 520 140 627 119 Cannons 696 | . . . 635 61 Explosions 1473 | . 623 . 434 416 Melee . | . . . . . Ramming . | . . . . . Kinetic 1287 | . 520 108 627 32 Thermal 783 | . . . 635 148 Explosive 1440 | . 623 . 401 416 Electromagnetic 65 | . . 32 33 . Impact . | . . . . . Slashing . | . . . . . Piercing . | . . . . . Highest Corruption . | . . . . . Average Corruption . | . . . . . Corruption Purged . | . . . . . Overload Shots . | . . . . . Overflow Damage 52 | . 47 . 4 1 Projectiles . | . . . . . Explosions 52 | . 47 . 4 1 Melee . | . . . . . Knockbacks . | . . . . . Impact . | . . . . . Kinetic . | . . . . . Secondary . | . . . . . Self-Inflicted Damage 115 | . 6 . 58 51 Shots 7 | . 2 . 3 2 Rammed . | . . . . . Targets Rammed . | . . . . . Kicked . | . . . . . Crushed . | . . . . . Highest Temperature 282 | . 4 30 282 96 Average Temperature 69 | . 2 12 82 41 Received Heat Transfer 517 | . 216 . 261 40 Siege Activations . | . . . . . Robots Corrupted . | . . . . . Combat Hostiles . | . . . . . Parts Fried 1 | . . . . 1 Impact Corruptions . | . . . . . Robots Melted . | . . . . . Combat Hostiles . | . . . . . Parts Melted . | . . . . . Heat Transferred 1443 | . . . 1147 296 Parts Sabotaged . | . . . . . Parts Stolen . | . . . . . Parts Stripped . | . . . . . Power Chain Reactions 2 | . . . 2 . Missiles Intercepted . | . . . . . Alert | -11 -10 -10 -9 -9 ------- Run | Scr Mat Min Mat Min Peak Influence 451 | . 264 125 451 160 Average Influence 173 | . 82 81 295 143 Maximum Alert Level 2 | . 1 . 2 . Low Security (%) 60 | 100 90 100 12 100 Level 1 33 | . 9 . 72 . Level 2 6 | . . . 15 . Level 3 . | . . . . . Level 4 . | . . . . . Level 5 . | . . . . . High Security . | . . . . . Max Security . | . . . . . Squads Dispatched 3 | . 1 . 2 . Investigation 2 | . 1 . 1 . Extermination . | . . . . . Reinforcement 1 | . . . 1 . Assault . | . . . . . Garrison . | . . . . . Intercept . | . . . . . Construction Impeded . | . . . . . Haulers Reinforced . | . . . . . Stealth | -11 -10 -10 -9 -9 --------- Run | Scr Mat Min Mat Min Distress Signals 6 | . 3 . 3 . Communications Jammed . | . . . . . Distress Signals . | . . . . . Times Spotted 78 | . 25 3 38 12 Peak Tracking Total 7 | . 7 3 5 5 Tactical Retreats 9 | . 1 . 8 . Traps | -11 -10 -10 -9 -9 ------- Run | Scr Mat Min Mat Min Traps Triggered 2 | . 1 . 1 . Indirectly . | . . . . . Trap Hack Attempts . | . . . . . Triggered . | . . . . . Disarmed . | . . . . . Reprogrammed . | . . . . . Reused . | . . . . . Traps Extracted . | . . . . . Installed . | . . . . . Triggered . | . . . . . Machines | -11 -10 -10 -9 -9 ---------- Run | Scr Mat Min Mat Min Machines Disabled 4 | . 1 . 3 . Max in Single Turn 1 | . 1 . 1 . Machines Sabotaged . | . . . . . Garrisons Compromised . | . . . . . Overloaded Fab Kills . | . . . . . Fab Network Shutdowns . | . . . . . Hacking | -11 -10 -10 -9 -9 --------- Run | Scr Mat Min Mat Min Machines Accessed 11 | . 8 . 3 . Terminals 9 | . 6 . 3 . Fabricators . | . . . . . Repair Stations . | . . . . . Recycling Units 2 | . 2 . . . Scanalyzers . | . . . . . Garrison Access . | . . . . . Total Hacks 29 | . 21 . 8 . Successful 12 | . 10 . 2 . Failed 17 | . 11 . 6 . Catastrophic 1 | . 1 . . . Database Lockouts . | . . . . . Manual 18 | . 10 . 8 . Terminals 21 | . 13 . 8 . Fabricators . | . . . . . Repair Stations . | . . . . . Recycling Units 8 | . 8 . . . Scanalyzers . | . . . . . Garrison Access . | . . . . . Terminal Hacks 3 | . 3 . . . Record 1 | . 1 . . . Unreport Threat 1 | . 1 . . . Zone Layout 1 | . 1 . . . Fabricator Hacks . | . . . . . Repair Station Hacks . | . . . . . Recycling Unit Hacks 3 | . 3 . . . Process 1 | . 1 . . . Report Inventory 1 | . 1 . . . Retrieve Matter 1 | . 1 . . . Scanalyzer . | . . . . . Garrison Access Hacks . | . . . . . Unauthorized Hacks 19 | . 10 . 9 . Terminals 6 | . 4 . 2 . Botnet 4 | . 3 . 1 . Operators 2 | . 1 . 1 . Fabricators . | . . . . . Repair Stations . | . . . . . Recycling Units . | . . . . . Scanalyzers . | . . . . . Garrison Access . | . . . . . Data Cores Recovered . | . . . . . Used . | . . . . . Hacking Detections 9 | . 6 . 3 . Full Trace Events . | . . . . . Feedback Events . | . . . . . Feedback Blocked . | . . . . . Robot Schematics Acquired . | . . . . . Robots Built . | . . . . . Matter . | . . . . . Time . | . . . . . Total Robot Build Rating . | . . . . . Part Schematics Acquired . | . . . . . Parts Built . | . . . . . Matter . | . . . . . Time . | . . . . . Total Part Build Rating . | . . . . . Parts Repaired . | . . . . . Time . | . . . . . Parts Recycled . | . . . . . Recycled Matter 112 | . 112 . . . Retrieved Matter 112 | . 112 . . . Retrieved Components . | . . . . . Parts Scanalyzed . | . . . . . Part Schematics Acquired . | . . . . . Parts Damaged . | . . . . . Bothacking | -11 -10 -10 -9 -9 ------------ Run | Scr Mat Min Mat Min Used RIF Installer . | . . . . . Robots Hacked . | . . . . . Non-combat . | . . . . . Combat . | . . . . . Robot Hacks Applied . | . . . . . Relay Couplers Released . | . . . . . Robots Rewired . | . . . . . Allies Hacked . | . . . . . Hacks Repelled . | . . . . . Allies | -11 -10 -10 -9 -9 -------- Run | Scr Mat Min Mat Min Total Allies 5 | . . 3 . 2 Largest Group 3 | . . 3 3 2 Highest-Rated Group 46 | . . 40 40 46 Highest-Rated Ally 31 | . . 16 16 31 Total Orders . | . . . . . Ally Attacks 37 | . . . 37 . Total Damage 314 | . . . 314 . Kills 5 | . . . 5 . Allies Corrupted . | . . . . . Allies Melted . | . . . . . Intel | -11 -10 -10 -9 -9 ------- Run | Scr Mat Min Mat Min Robot Analysis Total . | . . . . . Derelict Logs Recovered 1 | . . 1 . . Drone Launches . | . . . . . Drone Recoveries . | . . . . . Exploration | -11 -10 -10 -9 -9 ------------- Run | Scr Mat Min Mat Min Turns Passed 2095 | 75 541 450 879 150 Spaces Moved 1619 | 63 458 439 565 94 Core 14 | 14 . . . . Treads . | . . . . . Legs 11 | 11 . . . . Wheels 1594 | 38 458 439 565 94 Hover . | . . . . . Flight . | . . . . . Fastest Speed 50 | 50 90 90 90 110 Average Speed 95 | 95 90 90 100 110 Slowest Speed 150 | 150 90 90 120 110 Overloaded Moves . | . . . . . Propulsion Burnouts . | . . . . . Robots Hopped . | . . . . . Cave-ins Triggered . | . . . . . Exploration Rate (%) 45 | 5 61 85 49 25 Regions Visited 4 Branch Regions 2 Pre-discovered Areas . | . . . . . Known Exits Taken 3 | . 1 1 1 . Unknown Exits Taken 1 | 1 . . . . Scrap Searched 1 | . . 1 . . Spaces Dug 5 | . . 1 4 . Terrain Destroyed 115 | . 27 1 19 68 Melee . | . . . . . Projectile 5 | . . 1 4 . AOE 110 | . 27 . 15 68 Actions | -11 -10 -10 -9 -9 --------- Run | Scr Mat Min Mat Min Total 1895 | 75 516 471 711 122 Wait 30 | . . 13 12 5 Move 1615 | 62 457 438 564 94 Hop . | . . . . . Pick Up 29 | 6 6 3 14 . Fast Attach 12 | 4 3 1 4 . Attach 18 | 2 4 . 6 6 Detach 3 | . 2 . 1 . Swap 23 | 1 4 3 14 1 Drop 15 | . 3 2 10 . Fire 150 | . 37 11 86 16 Melee . | . . . . . Ram . | . . . . . Kick . | . . . . . Crush . | . . . . . Escape Stasis . | . . . . . Rewire . | . . . . . Trap . | . . . . . Miscellaneous . | . . . . . Route ------- -11/Scrapyard -10/Materials (discovered 2 exits: *Mat / *Min) -10/Mines -9/Materials -9/Mines History --------- Turn | Location | Event 16 | -11/Scrapyard | Discovered new exit (range 16) 76 | -11/Scrapyard | Entered Materials 269 | -10/Materials | Discovered new exit (range 14) 349 | -10/Materials | Build established: Mutant 560 | -10/Materials | Discovered new exit (range 10) 606 | -10/Materials | Identified exit to Mines 617 | -10/Materials | Entered Mines 632 | -10/Mines | Lost 3 parts (1p2w) 639 | -10/Mines | Met a Derelict bent on vengeance 971 | -10/Mines | Discovered new exit (range 7) 983 | -10/Mines | Assisted by bots powering up and referring to "LRC-V3" 988 | -10/Mines | Identified exit to Materials 1067 | -10/Mines | Entered Materials 1067 | -9/Materials | Accompanied by 3 allies 1067 | -9/Materials | Evolved 2 slots: Utility x2 1068 | -9/Materials | Identified exit to Mines 1946 | -9/Materials | Entered Mines 2026 | -9/Mines | Assembled infested the area 2031 | -9/Mines | Assisted by a Guerilla fighting off Assembled 2083 | -9/Mines | Core integrity fell below 50% 2094 | -9/Mines | Core integrity fell below 20% 2096 | -9/Mines | Destroyed by D-53 Grenadier with Mini Grenade Launcher Last Messages --------------- 02079_ The unstable cave ceiling collapses. 02080_ as-54732 destroyed. 02080_ C-30 ARC bursts open, deploying its payload. 02080_ D-53 Grenadier unfolds itself. 02080_ as-80620 destroyed. 02081_ The unstable cave ceiling collapses. 02082_ Grenade Launcher destroyed. 02084_ The unstable cave ceiling collapses. 02084_ Hvy. Assault Rifle destroyed. 02085_ The unstable cave ceiling collapses. 02086_ Wheel destroyed. 02086_ Imp. Ion Engine destroyed. 02087_ The unstable cave ceiling collapses. 02088_ Pulse Rifle destroyed. 02091_ The unstable cave ceiling collapses. 02094_ Pulse Rifle destroyed. 02095_ The unstable cave ceiling collapses. 02095_ Wheel destroyed. 02095_ Pulse Rifle destroyed. 02096_ Wheel destroyed. Map ----- +----------------------------------------------------+ | | | | | | | ?????????????????????????????????????????????????? | | ?????????????????????????????????????????????????? | | ?????????????????????????????????????????????????? | | ??????????????????####???????????????????????????? | | ?????????????????## ##??????????????????????????? | | ????????????????## #??????????????????????????? | | ???????????????## ##?????????????????????????? | | ???????????????# ##????????????????????????? | | ???????????????# ##???"##?????????????????? | | ????????????????# #??" ##????????????????? | | ????????????????# ### ?????????????????? | | ?????????????????# #?# ?? ????????????? | | ?????????????????## ##?? ?? ????????????? | | ?????????????????## ##??? ? #???????????? | | ????????????????## ##???? ## #???????????? | | ???????????????## ##????? # #???????????? | | ??????????????## ##?????## # ##??????????? | | ?????????????## #??#### #??????????? | | ????????????## #### #???????????? | | ???########## ## # ##??????????? | | ???# t # # #??????????? | | ???# ######### a #???????????? | | ???# #???????## @ #???????????? | | ?### #??##????### d% ##????????????? | | ## ### ##?????## d #u# #????????????? | | # #??????# ### ## #####????????????? | | # ##??????# #?## ##??#????????????????? | | # #??????? #??#######????????????????????? | | # ##??????####?????????????????????????????? | | ###### #?????????????????????????????????? | | ??????????????????????????????? | | # #?????????????????????????????????? | | ### ## ### #####?????????????????????????????????? | | ??# #? #?? #?????????????????????????????????????? | | ??# #? #???#?????????????????????????????????????? | | ??# #? ?????????????????????????????????????????? | | ### #?##?????????????????????????????????????????? | | #????????????????????????????????????????????? | | ####????????????????????????????????????????????? | | #???????????????????????????????????????????????? | | #???????????????????????????????????????????????? | | #???????????????????????????????????????????????? | | ##??????????????????????????????????????????????? | | ##?????????????????????????????????????????????? | | ###???????????????????????????????????????????? | | ##??????????????????????????????????????????? | | #??????????????????????????????????????????? | +----------------------------------------------------+ Best States ------------- Heat Dissipation 28 Energy Generation 14 Energy Capacity 265 Matter Stores 300 Matter Capacity 300 Sight Range 16 Terrain Scan Density 10 Evasion (%) 42 Targeting Accuracy 5 Item Schematics ----------------- None Robot Schematics ------------------ None Fabricated ------------ Nothing Alien Tech Used ----------------- None Achievements -------------- None Challenges ------------ None Game ------ Seed ExplosiveMassThruster Manual? 0 Play Time 00:29:40 Cumulative 21.6 hours Start 2020.03.22 @ 11:12:31 End 2020.03.22 @ 11:42:05 Sessions 1 Manual Loads 0 Difficulty Rogue Special Mode None Game No. 22 Rogue 22 Adventurer 0 Explorer 0 Win Type - Total 0 Types 0/0/0/0/0/0/0 Lore% 13 Gallery% 32 Achievement% 25 Wizard Run 0 Options --------- ASCII 0 Keyboard 0 Movement Numpad Keybinds 0 Fullscreen 2 Font 16/SmallcapsGlow Map View 82x53 Tactical HUD 1 Map Filters NONE Filters NONE Steam 0 RUN: f6fbc683-b46c-4740-8a8c-9dd22f8ac0b2